bitfinex-derivatives/quotes_ETHF0:USTF0_20250919
["timestamp","ask_amount","ask_price","bid_price","bid_amount"]
[1758255303173,1.5223,4537.0,4536.9,4.7269]
[1758255303661,1.3027,4537.0,4536.9,4.7269]
[1758255303861,3.2078,4537.7,4537.6,1.2911]
[1758255303862,3.5658,4537.7,4537.6,1.2911]
[1758255304066,4.1403,4537.7,4537.6,1.2911]
[1758255305165,5.8155,4538.2,4537.6,0.9621]
[1758255305361,1.3027,4538.2,4538.1,1.2911]
[1758255305668,0.228,4538.9,4538.4,0.7341]
[1758255305870,0.9325,4538.9,4538.8,0.3678]
[1758255306069,0.9325,4538.9,4538.8,1.2911]
[1758255307372,1.3027,4538.9,4538.8,1.2911]
[1758255307668,0.358,4538.9,4538.8,1.2911]
[1758255307973,0.9325,4538.9,4538.8,1.2911]
[1758255309267,0.358,4538.9,4538.8,1.2911]
[1758255309472,0.5745,4539.3,4538.9,0.557]
[1758255309672,1.5307,4539.4,4539.3,0.3663]
[1758255310076,1.5307,4539.4,4539.3,0.7341]
[1758255310077,1.3027,4539.4,4539.3,0.7341]
[1758255310269,1.3027,4539.4,4539.3,1.2911]
[1758255310772,1.3027,4539.4,4539.3,0.7341]
[1758255311172,1.5223,4539.0,4538.9,0.228]
[1758255311674,1.5223,4539.0,4538.9,0.5943]
[1758255312973,3.2078,4539.6,4539.5,0.7341]
[1758255313170,0.5745,4539.8,4539.5,4.04012266]
[1758255313370,0.358,4539.7,4539.6,1.2911]
[1758255314374,0.9325,4539.7,4539.6,1.2911]
[1758255316278,1.3027,4539.7,4539.5,0.228]
[1758255316483,0.7282,4539.7,4539.5,0.228]
[1758255316777,1.3027,4539.6,4539.5,0.5943]
[1758255317072,1.3027,4539.3,4539.2,3.2078]
[1758255317472,0.9325,4539.3,4539.2,4.4989]
[1758255317673,0.228,4539.9,4539.2,3.9419]
[1758255317865,1.3027,4539.8,4539.7,3.44432266]
[1758255318275,1.3027,4539.8,4539.7,0.3663]
[1758255319773,0.358,4539.3,4539.2,3.9419]
[1758255320077,0.358,4539.3,4539.2,4.4989]
[1758255320576,0.5745,4539.5,4539.2,4.4989]
[1758255320775,1.5307,4539.9,4539.8,0.3663]
[1758255321079,0.2196,4539.5,4539.2,3.2078]
[1758255321281,0.7282,4539.3,4539.2,3.2078]
[1758255321579,1.3027,4539.3,4539.2,3.5741]
[1758255322371,0.5745,4539.7,4539.2,4.4989]
[1758255322574,1.3027,4539.7,4539.6,1.2911]
[1758255322876,0.358,4539.7,4539.6,1.2911]
[1758255323070,0.9325,4539.7,4539.6,1.2911]
[1758255324174,1.3027,4539.7,4539.6,0.7341]
[1758255324382,1.5223,4539.5,4539.4,0.5943]
[1758255324681,0.2196,4540.0,4539.9,0.3663]
[1758255324682,1.5223,4540.0,4539.9,0.3663]
[1758255326074,1.5223,4540.0,4539.9,1.2911]
[1758255326277,1.3027,4540.0,4539.9,1.2911]
[1758255328085,0.358,4540.0,4539.9,1.2911]
[1758255328584,3.5732,4540.2,4540.1,1.27]
[1758255328777,4.1242,4540.2,4540.1,1.27]
[1758255328978,0.9164,4540.2,4540.1,1.27]
[1758255329381,1.2747,4540.2,4540.1,1.27]
[1758255330082,0.3654,4540.2,4540.1,4.34802266]
[1758255330279,0.551,4540.6,4540.2,0.5355]
[1758255330484,0.9164,4540.6,4540.5,1.27]
[1758255330785,1.2747,4540.6,4540.5,1.27]
[1758255331483,0.3654,4540.6,4540.5,1.4971]
[1758255331880,0.9164,4540.6,4540.5,1.4971]
[1758255332188,0.9164,4540.6,4540.5,1.27]
[1758255332582,1.2747,4540.6,4540.5,1.27]
[1758255333190,4.1242,4540.7,4540.6,1.27]
[1758255333383,4.1242,4540.7,4540.6,1.497]
[1758255333782,1.2747,4540.7,4540.6,1.497]
[1758255334181,0.3654,4540.7,4540.6,1.497]
[1758255334378,5.6064,4540.9,4540.8,0.7345]
[1758255334585,6.1574,4540.9,4540.8,1.27]
[1758255335089,6.5157,4540.9,4540.8,1.27]
[1758255339591,6.1574,4540.9,4540.8,1.27]
[1758255340784,5.6064,4540.9,4540.8,1.27]
[1758255340989,5.241,4540.9,4540.8,5.27]
[1758255341390,1.2747,4541.4,4541.3,0.3673]
[1758255341695,1.2747,4541.4,4541.3,0.5943]
[1758255341890,1.2747,4541.4,4541.3,1.1298]
[1758255342192,3.7588,4541.9,4541.4,0.5355]
[1758255342396,0.9164,4541.5,4541.4,1.27]
[1758255342695,1.2747,4541.5,4541.4,1.27]
[1758255344293,0.9164,4541.5,4541.4,0.7345]
[1758255344998,0.9164,4541.5,4541.4,1.27]
[1758255346798,6.1574,4541.5,4541.4,1.27]
[1758255347997,6.1574,4541.5,4541.4,2.18420659]
[1758255348303,0.9164,4541.8,4541.7,1.27]
[1758255348509,1.2747,4541.8,4541.7,2.41120659]
[1758255352001,1.2747,4541.8,4541.7,3.32541318]
[1758255352189,1.2747,4541.8,4541.7,1.497]
[1758255352390,3.2078,4542.7,4541.7,1.497]
[1758255352391,3.2078,4543.2,4542.3,0.3673]
[1758255352585,3.2078,4543.2,4542.8,1.27]
[1758255352586,1.2747,4542.9,4542.8,1.27]
[1758255352792,1.2747,4542.9,4542.8,3.32541318]
[1758255353895,1.2747,4542.9,4542.8,2.41120659]
[1758255354096,1.2747,4542.9,4542.8,6.53321318]
[1758255354991,0.3654,4542.9,4542.8,6.53321318]
[1758255355193,0.9164,4543.2,4543.1,0.7345]
[1758255355403,0.9164,4543.2,4543.1,2.41120659]
[1758255356895,0.3654,4543.2,4543.1,2.41120659]
[1758255357398,1.2183,4543.8,4543.7,0.3713]
[1758255357696,1.2183,4543.8,4543.7,1.28550659]
[1758255358500,1.2183,4543.8,4543.7,0.91420659]
[1758255358703,1.2591,4542.9,4542.8,5.40710659]
[1758255358902,1.2591,4542.9,4542.8,4.1693]
[1758255359101,1.2591,4542.9,4542.8,5.08350659]
[1758255359605,1.2591,4542.9,4542.8,3.9423]
[1758255359802,1.2591,4542.9,4542.8,3.4348]
[1758255360003,1.2591,4542.9,4542.8,3.7997]
[1758255360196,1.2591,4542.9,4542.8,3.2078]
[1758255360397,0.2243,4542.0,4541.9,0.91420659]
[1758255360606,1.4834,4542.0,4541.9,1.50610659]
[1758255360801,0.8991,4542.0,4541.9,2.42630659]
[1758255360997,0.3422,4542.4,4542.3,1.2851]
[1758255361200,0.3422,4542.4,4542.3,5.63410659]
[1758255361606,1.2591,4542.4,4542.3,5.63410659]
[1758255361801,1.2591,4542.4,4542.3,5.78919616]
[1758255362195,1.2591,4542.4,4542.3,4.7199]
[1758255362402,1.2591,4542.4,4542.3,5.78919616]
[1758255363211,1.2591,4542.4,4542.3,5.23859616]
[1758255363808,1.2591,4542.4,4542.3,0.7345]
[1758255364007,1.2591,4542.4,4542.3,0.227]
[1758255364513,1.2591,4542.4,4542.3,1.5121]
[1758255364812,1.2591,4542.4,4542.3,0.5919]
[1758255365411,1.2591,4542.4,4542.3,0.227]
[1758255366906,0.2243,4542.0,4541.8,3.2078]
[1758255367107,1.2591,4541.9,4541.8,3.5727]
[1758255367300,1.2591,4541.9,4541.8,3.7997]
[1758255367502,1.2591,4541.9,4541.8,0.3649]
[1758255367705,1.2591,4541.9,4541.8,1.2851]
[1758255368006,1.2591,4541.9,4541.8,2.35439616]
[1758255370504,0.8991,4542.2,4542.1,0.7345]
[1758255370703,0.3422,4542.2,4542.1,2.58139616]
[1758255370911,1.2591,4542.2,4542.1,2.58139616]
[1758255371108,1.2591,4542.2,4542.1,0.227]
[1758255372510,0.5569,4542.2,4542.1,1.5121]
[1758255372714,1.2591,4542.2,4542.1,1.5121]
[1758255373109,0.2243,4542.0,4541.6,0.022]
[1758255373325,4.4669,4541.7,4541.6,0.022]
[1758255373514,0.5569,4540.7,4540.1,4.27709616]
[1758255373819,0.7022,4540.7,4540.6,0.3649]
[1758255374212,1.2591,4540.7,4540.6,1.2851]
[1758255374421,0.5569,4540.9,4540.6,0.7345]
[1758255374716,1.2591,4540.9,4540.8,1.2851]
[1758255375217,1.2591,4540.9,4540.8,0.7345]
[1758255375415,0.5569,4541.5,4540.8,2.35439616]
[1758255375616,1.4834,4542.0,4541.9,1.2851]
[1758255375917,1.4834,4542.0,4541.9,0.3649]
[1758255376308,0.5569,4541.3,4540.8,1.06929616]
[1758255376517,1.2591,4540.9,4540.8,1.43419616]
[1758255376810,1.2591,4540.9,4540.8,2.35439616]
[1758255377714,1.2591,4540.9,4540.7,0.227]
[1758255378013,0.5569,4540.8,4540.6,3.2078]
[1758255378318,1.2591,4540.2,4540.1,3.5727]
[1758255378615,1.2591,4540.2,4540.1,4.4929]
[1758255379712,0.5569,4540.5,4540.1,4.4929]
[1758255379913,0.8991,4540.5,4540.4,1.2851]
[1758255380716,1.2591,4540.5,4540.4,1.2851]
[1758255382309,0.5569,4540.9,4540.4,0.7345]
[1758255382509,1.2591,4540.9,4540.8,1.2851]
[1758255383317,1.2591,4540.9,4540.8,0.7345]
[1758255383522,1.2591,4540.9,4540.8,1.2851]
[1758255385014,0.3422,4540.9,4540.8,1.2851]
[1758255385221,0.8991,4540.9,4540.8,1.2851]
[1758255385622,3.2078,4541.4,4540.8,1.2851]
[1758255385623,0.5569,4541.2,4540.8,0.7345]
[1758255385822,0.8991,4541.2,4541.1,0.7345]
[1758255386015,0.8991,4541.2,4541.1,1.2851]
[1758255386722,1.2591,4541.2,4541.1,1.2851]
[1758255387614,5.5832,4541.2,4541.1,1.2851]
[1758255387817,5.241,4541.2,4541.1,1.2851]
[1758255388723,0.9125,4541.6,4541.5,0.7096]
[1758255389023,0.8695,4542.0,4541.9,1.2097]
[1758255389620,3.2078,4542.4,4542.3,1.2097]
[1758255389621,0.3556,4542.4,4542.3,1.2097]
[1758255389820,0.8695,4542.4,4542.3,1.2097]
[1758255390020,0.3556,4542.4,4542.3,1.2097]
[1758255390322,0.5139,4542.7,4542.3,1.2097]
[1758255390517,0.3556,4542.5,4542.4,1.2097]
[1758255390915,0.8695,4542.5,4542.4,1.2097]
[1758255394127,0.3556,4542.5,4542.4,1.2097]
[1758255394328,0.2243,4543.0,4542.4,0.7096]
[1758255394628,1.2126,4542.9,4542.8,1.2097]
[1758255395021,3.2078,4543.1,4543.0,0.5619]
[1758255395221,0.5139,4543.7,4543.1,0.5001]
[1758255395427,1.2126,4543.7,4543.6,1.2097]
[1758255396028,0.3556,4543.7,4543.6,1.2097]
[1758255396224,0.3556,4543.8,4543.7,1.2097]
[1758255396724,0.5139,4544.0,4543.7,1.2097]
[1758255396923,3.2078,4544.3,4543.7,4.15946812]
[1758255397125,4.4204,4544.3,4544.2,1.2097]
[1758255397528,4.0773,4544.3,4544.2,1.2097]
[1758255398332,0.8695,4544.3,4544.2,1.2097]
[1758255398532,0.3556,4544.3,4544.2,1.2097]
[1758255398731,1.2126,4544.9,4544.8,0.3443]
[1758255399136,1.2126,4544.9,4544.8,1.2097]
[1758255401040,3.2078,4546.3,4545.6,0.7096]
[1758255401246,1.2126,4546.2,4545.7,0.5001]
[1758255401545,0.6987,4544.8,4544.2,3.9349]
[1758255401739,0.6987,4544.8,4544.7,0.3443]
[1758255401942,1.2126,4544.8,4544.7,0.3443]
[1758255402137,0.9185,4544.5,4544.4,0.5713]
[1758255402347,1.4324,4544.5,4544.4,0.5713]
[1758255404441,1.4324,4544.5,4544.4,1.4367]
[1758255405746,1.2126,4544.5,4544.4,1.4367]
[1758255406247,1.4324,4544.5,4544.4,1.4367]
[1758255407650,1.2126,4544.5,4544.4,1.4367]
[1758255409346,0.3556,4545.0,4544.9,0.7096]
[1758255409547,0.8695,4545.0,4544.9,1.4367]
[1758255409752,1.4324,4545.0,4544.9,0.3443]
[1758255409954,1.4324,4545.0,4544.9,0.227]
[1758255410151,1.4324,4545.0,4544.9,0.5713]
[1758255410847,1.4324,4545.0,4544.9,1.4367]
[1758255411550,1.2126,4545.0,4544.9,1.4367]
[1758255411856,0.8695,4545.0,4544.9,1.4367]
[1758255412852,1.2126,4545.0,4544.9,1.4367]
[1758255413053,1.4324,4545.0,4544.9,1.4367]
[1758255413452,1.4324,4545.0,4544.9,0.9366]
[1758255413855,1.4324,4545.0,4544.9,0.227]
[1758255414156,0.5139,4544.9,4544.2,7.15776812]
[1758255414356,0.3556,4544.4,4544.3,0.9366]
[1758255414552,0.5139,4544.6,4544.3,1.4367]
[1758255414855,0.8695,4544.5,4544.4,1.2097]
[1758255415050,0.3556,4544.5,4544.4,1.2097]
[1758255415250,0.8695,4544.5,4544.4,1.2097]
[1758255416357,0.8518,4545.0,4544.9,0.709]
[1758255416552,1.1954,4545.0,4544.9,1.1994]
[1758255417857,6.4364,4545.0,4544.9,2.26743867]
[1758255418963,6.6399,4545.0,4544.8,0.227]
[1758255419555,6.1236,4545.0,4544.2,3.2078]
[1758255419757,1.227,4544.3,4544.2,4.3929]
[1758255419955,1.227,4544.3,4544.2,5.68793867]
[1758255420151,1.227,4544.3,4544.2,4.3929]
[1758255420356,1.227,4544.3,4544.2,3.7892]
[1758255420558,1.227,4544.3,4544.2,4.6199]
[1758255420958,0.2035,4544.0,4543.7,3.2078]
[1758255421159,1.227,4543.8,4543.7,3.5622]
[1758255421360,1.454,4543.8,4543.0,0.4907]
[1758255421568,1.227,4543.1,4543.0,1.4121]
[1758255424565,0.3473,4543.1,4543.0,1.6178]
[1758255424966,0.3473,4543.1,4543.0,4.68787888]
[1758255424967,0.8692,4543.1,4543.0,4.68787888]
[1758255425166,0.2035,4543.5,4543.0,4.19717888]
[1758255425167,0.5219,4543.5,4543.0,4.19717888]
[1758255425367,0.8692,4543.5,4543.4,1.1851]
[1758255425768,1.227,4543.5,4543.4,1.1851]
[1758255425970,1.4305,4543.5,4543.4,1.1851]
[1758255426669,1.4305,4543.5,4543.4,0.3544]
[1758255426962,1.4305,4543.5,4543.2,0.227]
[1758255427362,1.227,4543.0,4542.9,3.2298]
[1758255427568,1.4305,4543.0,4542.9,3.2298]
[1758255427761,1.4305,4543.0,4542.9,3.5842]
[1758255428071,1.227,4543.0,4542.9,4.4149]
[1758255428971,1.4305,4543.0,4542.9,3.9242]
[1758255429266,1.4305,4543.0,4542.9,4.4149]
[1758255429863,1.227,4543.0,4542.9,4.4149]
[1758255430264,1.227,4543.0,4542.9,4.3929]
[1758255430961,0.2035,4543.5,4543.0,0.2057]
[1758255431163,3.4113,4544.0,4543.0,0.2057]
[1758255431164,0.8692,4543.7,4543.6,0.6944]
[1758255431363,1.227,4543.7,4543.6,0.6944]
[1758255431769,1.227,4543.7,4543.6,1.1851]
[1758255432364,1.227,4543.7,4543.6,1.4121]
[1758255432763,6.468,4543.7,4543.6,1.4121]
[1758255433074,6.468,4543.7,4543.6,0.227]
[1758255433267,1.227,4543.6,4543.5,0.3544]
[1758255433460,1.227,4543.6,4543.4,3.2078]
[1758255433665,1.4305,4543.5,4543.4,3.2078]
[1758255433865,1.4305,4543.5,4543.1,0.022]
[1758255434262,1.4305,4543.5,4543.1,0.5127]
[1758255434466,0.9086,4543.5,4543.4,0.3544]
[1758255435066,1.4305,4543.5,4543.4,0.3544]
[1758255435867,1.227,4543.5,4543.4,1.1851]
[1758255436074,1.4305,4543.5,4543.4,1.1851]
[1758255437165,1.4305,4543.5,4543.2,3.4348]
[1758255437166,0.5219,4543.4,4543.2,3.4348]
[1758255437367,1.227,4543.3,4543.2,3.7892]
[1758255438076,1.227,4543.3,4543.2,3.4348]
[1758255438671,1.227,4543.3,4543.2,4.6199]
[1758255440068,5.5883,4543.7,4543.6,1.1851]
[1758255440476,5.241,4543.7,4543.6,1.1851]
[1758255440669,0.2035,4545.5,4544.8,0.3544]
[1758255440670,1.227,4544.9,4544.8,0.3544]
[1758255444168,1.227,4544.9,4544.8,1.1851]
[1758255444369,1.227,4544.9,4544.8,1.4111]
[1758255447269,1.227,4545.6,4545.5,0.3544]
[1758255447475,1.227,4545.3,4545.2,0.226]
[1758255448077,1.227,4545.3,4545.1,0.226]
[1758255448776,1.1692,4546.4,4546.3,0.3556]
[1758255449079,1.1692,4546.4,4546.3,3.42567888]
[1758255449477,1.1692,4546.4,4546.3,3.75617888]
[1758255449776,1.1692,4546.4,4546.3,4.24767888]
[1758255450175,0.4968,4547.1,4546.3,4.6114]
[1758255450374,0.3382,4547.1,4547.0,1.1776]
[1758255450677,0.835,4547.1,4547.0,1.1776]
[1758255451074,0.835,4547.1,4547.0,4.24767888]
[1758255451667,0.835,4547.1,4547.0,1.1776]
[1758255452380,0.835,4547.1,4547.0,4.3854]
[1758255453174,0.835,4547.1,4547.0,3.8939]
[1758255453777,0.835,4547.1,4547.0,4.3854]
[1758255456782,1.1692,4547.1,4547.0,3.5634]
[1758255457169,1.1692,4547.1,4547.0,4.3854]
[1758255457576,1.1692,4547.1,4547.0,7.45547888]
[1758255458075,1.1692,4547.1,4547.0,6.96397888]
[1758255458776,1.1692,4547.1,4547.0,7.45547888]
[1758255460871,1.1692,4547.1,4547.0,7.68147888]
[1758255463179,1.1692,4547.1,4547.0,4.6114]
[1758255463788,1.1692,4547.1,4547.0,5.52344215]
[1758255465582,1.1692,4547.1,4547.0,5.29744215]
[1758255465782,1.1692,4547.1,4547.0,5.52344215]
[1758255466778,1.1692,4547.1,4547.0,3.5634]
[1758255466979,0.4968,4546.2,4545.9,3.2078]
[1758255467182,0.6724,4546.2,4546.1,1.26764215]
[1758255467388,0.6724,4546.2,4545.9,3.2078]
[1758255467389,1.1692,4546.2,4545.9,3.4338]
[1758255467586,1.3817,4546.0,4545.9,3.4338]
[1758255467780,0.6724,4545.5,4545.4,0.5816]
[1758255467980,1.1692,4545.5,4545.4,1.4036]
[1758255468386,1.3817,4545.5,4545.4,0.9121]
[1758255468882,0.4968,4545.4,4545.3,3.2078]
[1758255469083,1.1692,4545.4,4545.3,3.2078]
[1758255470291,1.1692,4545.4,4545.3,3.5634]
[1758255471388,1.1692,4545.4,4545.3,0.3556]
[1758255471692,5.1692,4545.4,4545.1,0.022]
[1758255472388,0.6724,4545.2,4545.1,0.022]
[1758255472692,1.1692,4545.2,4545.1,0.022]
[1758255473599,0.6724,4545.2,4544.7,3.2078]
[1758255473789,1.1692,4544.8,4544.7,3.5634]
[1758255474391,1.1692,4544.8,4544.7,4.4039]
[1758255476495,1.1692,4544.8,4544.7,3.9122]
[1758255476691,1.1692,4544.8,4544.7,3.2078]
[1758255476891,1.1692,4544.8,4544.5,0.248]
[1758255477792,1.1692,4544.8,4544.5,0.022]
[1758255478388,1.1692,4544.8,4544.5,0.5092]
[1758255479396,1.1692,4544.8,4544.5,0.022]
[1758255479599,1.1284,4544.6,4544.5,0.022]
[1758255480000,1.1284,4544.2,4544.1,3.2078]
[1758255480195,1.1284,4544.2,4543.5,3.2078]
[1758255480196,0.2003,4544.0,4543.5,3.2078]
[1758255480400,1.1284,4543.6,4543.5,3.2078]
[1758255480597,1.1284,4543.6,4543.5,4.3488]
[1758255486807,1.1284,4543.6,4543.5,1.141]
[1758255490007,1.1284,4543.6,4543.5,0.3222]
[1758255490204,1.1284,4543.6,4543.5,0.8094]
[1758255491209,1.1284,4543.6,4543.5,1.141]
[1758255494114,1.1284,4543.6,4543.3,0.248]
[1758255494115,1.1284,4543.6,4543.3,0.022]
[1758255494306,1.1284,4542.8,4542.7,1.141]
[1758255498925,1.1284,4542.8,4542.7,0.3222]
[1758255500519,1.1284,4542.8,4541.9,1.163]
[1758255500520,1.3287,4542.0,4541.9,1.163]
[1758255500918,1.3287,4542.0,4541.9,1.141]
[1758255501419,1.1284,4542.0,4541.9,1.141]
[1758255502024,1.0198,4542.5,4542.4,1.141]
[1758255502324,1.3544,4542.5,4542.4,1.141]
[1758255502527,1.5547,4542.5,4542.4,1.141]
[1758255503230,1.5547,4542.5,4542.4,0.3222]
[1758255503419,2.09560885,4542.5,4542.4,0.3222]
[1758255504726,2.09560885,4542.5,4541.7,0.4872]
[1758255504927,2.19731182,4542.2,4542.1,1.141]
[1758255505228,2.42331182,4542.2,4542.1,1.141]
[1758255506731,1.1284,4541.2,4541.1,1.141]
[1758255507028,2.19731182,4541.2,4541.1,0.3222]
[1758255507228,2.19731182,4541.2,4541.1,0.8094]
[1758255507425,2.19731182,4541.2,4541.1,0.3222]
[1758255509034,0.194,4541.0,4540.9,0.3302]
[1758255509232,1.92251182,4541.0,4540.9,0.3302]
[1758255509433,2.14851182,4541.0,4540.9,0.3302]
[1758255509622,2.65311182,4541.0,4540.9,0.3302]
[1758255512727,3.19355513,4541.0,4540.9,0.3302]
[1758255513031,1.89864331,4541.0,4540.9,0.6679]
[1758255513234,3.19355513,4541.0,4540.9,1.1466]
[1758255513430,2.65311182,4541.0,4540.9,1.1466]
[1758255514429,2.65311182,4541.0,4540.9,0.3302]
[1758255514635,2.65311182,4541.0,4540.4,3.4338]
[1758255514836,1.1642,4540.9,4540.8,0.3302]
[1758255515432,1.1642,4540.9,4540.8,1.1466]
[1758255515631,1.3902,4540.9,4540.8,1.1466]
[1758255519735,1.3902,4540.9,4540.8,0.6679]
[1758255520137,2.45911182,4540.9,4540.8,1.1466]
[1758255520743,2.45911182,4540.9,4540.8,0.3302]
[1758255522841,2.45911182,4540.9,4540.2,0.022]
[1758255522842,0.6596,4540.3,4540.2,0.022]
[1758255523047,2.45911182,4540.3,4540.2,0.022]
[1758255523247,2.99951657,4540.3,4539.5,0.4787]
[1758255523444,1.1642,4539.6,4539.5,1.1466]
[1758255523649,2.23311182,4539.6,4539.5,1.1466]
[1758255526239,2.23311182,4539.6,4539.5,0.6679]
[1758255526747,2.23311182,4539.6,4539.5,1.1466]
[1758255531255,1.1642,4539.6,4539.5,1.1466]
[1758255531456,2.23311182,4539.6,4539.5,1.1466]
[1758255531653,1.1642,4539.6,4539.5,1.1466]
[1758255535054,0.226,4539.8,4539.5,0.854]
[1758255535055,0.4895,4539.8,4539.5,0.854]
[1758255535362,0.8045,4539.8,4539.7,1.1183]
[1758255536770,0.1077,4539.9,4539.7,0.6409]
[1758255537066,0.8045,4540.5,4540.4,1.1183]
[1758255537657,0.4895,4540.8,4540.4,0.6409]
[1758255537969,1.94141182,4540.8,4540.7,1.1183]
[1758255538464,2.42201182,4540.8,4540.7,1.1183]
[1758255538661,2.19601182,4540.8,4540.7,1.1183]
[1758255541470,1.1271,4540.8,4540.7,1.1183]
[1758255541660,2.19601182,4540.8,4540.7,1.1183]
[1758255543870,2.04184044,4540.8,4540.7,1.1183]
[1758255546773,2.04184044,4540.8,4540.7,0.6409]
[1758255549873,2.04184044,4540.8,4540.5,0.4885]
[1758255550064,2.01684044,4540.6,4540.5,0.8131]
[1758255550572,2.01684044,4540.6,4540.5,1.1201]
[1758255552284,0.7953,4540.6,4540.5,1.3054]
[1758255553175,0.4806,4540.8,4540.7,0.6316]
[1758255553375,0.226,4540.9,4540.8,0.4885]
[1758255553577,0.226,4540.9,4540.8,1.1201]
[1758255553773,0.4806,4542.0,4541.0,1.3054]
[1758255553976,0.6215,4541.5,4541.4,0.6316]
[1758255554179,1.1021,4541.3,4541.2,3.2078]
[1758255554373,2.01684044,4541.3,4541.2,3.5324]
[1758255554975,1.53624044,4541.3,4540.7,3.9223]
[1758255555182,1.1021,4540.8,4540.7,4.5539]
[1758255555978,1.1021,4540.8,4540.7,3.5324]
[1758255556183,1.1021,4540.8,4540.7,3.2078]
[1758255556882,1.1021,4540.8,4540.7,3.5324]
[1758255557579,1.1021,4540.8,4540.7,4.0209]
[1758255557781,1.1021,4540.8,4540.7,4.3279]
[1758255558078,0.7953,4540.8,4540.7,4.3279]
[1758255559079,1.71004044,4540.8,4540.7,4.3279]
[1758255560873,1.39534044,4540.8,4540.7,4.3279]
[1758255561175,3.2078,4541.4,4541.2,0.8131]
[1758255561176,1.1021,4541.3,4541.2,0.8131]
[1758255561583,1.1021,4541.3,4540.9,0.4885]
[1758255561783,1.1021,4540.6,4540.5,0.7955]
[1758255561987,1.1021,4540.6,4540.5,0.6316]
[1758255562181,2.01684044,4540.6,4540.5,0.6316]
[1758255562378,2.01684044,4540.6,4540.5,1.1201]
[1758255564373,1.2899,4541.0,4540.9,0.3246]
[1758255564579,2.01684044,4541.0,4540.9,1.1201]
[1758255565785,0.3147,4541.0,4540.9,1.1201]
[1758255566174,0.7953,4541.2,4541.1,1.1201]
[1758255566379,1.71004044,4541.2,4541.1,1.1201]
[1758255566684,2.01684044,4541.2,4541.1,1.1201]
[1758255569492,0.7953,4541.2,4541.1,1.1201]
[1758255569685,1.71004044,4541.2,4541.1,1.1201]
[1758255571387,8.9103,4541.9,4541.5,0.1872]
[1758255571690,5.7025,4541.9,4541.8,1.1074]
[1758255572285,6.0329,4541.9,4541.8,1.1074]
[1758255572485,6.94764044,4541.9,4541.8,1.1074]
[1758255572687,7.25794044,4541.9,4541.8,1.1074]
[1758255572886,10.46574044,4541.9,4541.4,0.226]
[1758255573087,1.2936,4541.5,4541.4,0.3236]
[1758255573583,8.955,4542.4,4541.4,0.3236]
[1758255573584,0.91474044,4545.0,4543.5,1.2946]
[1758255573783,0.91474044,4544.0,4543.5,2.20934044]
[1758255573994,0.91474044,4543.7,4543.6,0.3236]
[1758255574487,0.91474044,4543.7,4543.6,0.7938]
[1758255575484,0.212,4544.1,4544.0,0.1872]
[1758255575682,0.212,4544.1,4544.0,0.6574]
[1758255575683,1.12674044,4544.1,4544.0,0.6574]
[1758255575888,0.212,4544.1,4544.0,0.6574]
[1758255576392,7.63987,4544.1,4543.3,0.00330429]
[1758255576694,3.0694883,4543.4,4543.3,0.00330429]
[1758255576889,3.2974883,4543.4,4543.3,0.00330429]
[1758255579291,7.2974883,4543.4,4543.3,0.00330429]
[1758255579495,3.2974883,4543.4,4543.3,0.00330429]
[1758255584104,3.2974883,4543.4,4543.3,0.47350429]
[1758255584492,8.5384883,4543.4,4543.3,0.47350429]
[1758255587889,8.5384883,4543.4,4543.3,1.11070429]
[1758255587890,5.241,4543.4,4543.3,1.11070429]
[1758255588090,8.4488,4543.5,4543.3,1.11070429]
[1758255588291,3.2078,4544.0,4543.9,0.3236]
[1758255588487,3.4348,4544.0,4543.9,0.7938]
[1758255588992,10.5042883,4544.0,4543.3,0.00330429]
[1758255589195,3.0694883,4543.6,4543.3,0.00330429]
[1758255589498,0.227,4543.5,4543.3,0.47350429]
[1758255589696,0.227,4543.5,4543.3,0.49550429]
[1758255589895,3.2078,4543.4,4543.3,0.49550429]
[1758255590093,3.2078,4543.4,4543.3,0.02530429]
[1758255590296,7.2078,4543.4,4543.3,0.02530429]
[1758255590690,7.4348,4543.4,4543.3,0.02530429]
[1758255590894,7.96245581,4543.4,4543.3,0.02530429]
[1758255592796,7.96245581,4543.4,4543.3,0.00330429]
[1758255592997,11.03194411,4543.4,4543.3,0.47350429]
[1758255593193,11.03194411,4543.4,4543.3,0.00330429]
[1758255594003,16.27294411,4543.4,4543.3,0.00330429]
[1758255594396,16.27294411,4543.4,4543.3,0.47350429]
[1758255594595,16.04594411,4543.4,4543.3,0.00330429]
[1758255594794,16.27294411,4543.4,4543.3,0.00330429]
[1758255595096,16.49247529,4543.4,4543.3,0.00330429]
[1758255595300,16.49247529,4543.4,4543.3,0.47350429]
[1758255595503,12.49247529,4543.4,4543.3,0.47350429]
[1758255597003,12.49248491,4543.4,4543.3,0.47350429]
[1758255597798,12.26548491,4543.4,4543.3,0.47350429]
[1758255598099,11.7452883,4543.4,4543.3,0.47350429]
[1758255598298,12.26984256,4543.4,4543.3,0.47350429]
[1758255600007,12.04284256,4543.4,4543.3,0.47350429]
[1758255600208,12.48965009,4543.4,4543.3,0.47350429]
[1758255601605,12.48965009,4543.4,4543.3,0.00330429]
[1758255601802,16.48965009,4543.4,4542.2,0.487]
[1758255602106,3.0694883,4542.3,4541.7,0.487]
[1758255602307,3.0694883,4541.8,4541.6,0.487]
[1758255602508,0.227,4541.7,4541.6,1.1322]
[1758255602709,3.2078,4542.4,4542.3,1.1322]
[1758255602903,0.75221777,4542.4,4542.3,1.1322]